bitfinex/quotes_ETHUSD_20250524
["timestamp","ask_amount","ask_price","bid_price","bid_amount"]
[1748106679518,3.90747108,2559.2,2559.1,53.34672924]
[1748106679724,6.12,2559.4,2559.2,8.0]
[1748106679865,3.90716574,2559.4,2559.3,10.61042924]
[1748106681763,3.90716574,2559.4,2559.3,37.20742924]
[1748106682710,3.90694076,2559.6,2559.5,0.7522]
[1748106683680,3.90694076,2559.6,2559.5,10.58592924]
[1748106684083,3.90694076,2559.6,2559.5,37.18092924]
[1748106684483,3.90694076,2559.6,2559.5,10.58592924]
[1748106684684,3.90694076,2559.6,2559.5,37.18092924]
[1748106685114,3.90694076,2559.6,2559.5,36.42872924]
[1748106685472,3.90694076,2559.6,2559.5,9.83372924]
[1748106685811,3.90672856,2559.7,2559.6,8.0]
[1748106686615,3.90672856,2559.7,2559.5,1.83372924]
[1748106686616,3.90686044,2559.6,2559.5,1.83372924]
[1748106686810,3.90716574,2559.4,2559.3,10.58592924]
[1748106686969,3.90716574,2559.4,2559.3,26.595]
[1748106687169,3.90747108,2559.2,2559.1,18.74872924]
[1748106687485,3.90747108,2559.2,2559.1,45.34372924]
[1748106687696,3.90747108,2559.2,2559.1,26.74872924]
[1748106687874,3.90747108,2559.2,2559.1,53.34372924]
[1748106688275,3.90747108,2559.2,2559.1,41.63472924]
[1748106688475,3.90747108,2559.2,2559.1,53.34372924]
[1748106688774,3.90747108,2559.2,2559.1,26.74872924]
[1748106689005,3.90747108,2559.2,2559.1,53.34372924]
[1748106690810,3.90733918,2559.3,2559.2,8.7805]
[1748106690811,3.9073184,2559.3,2559.2,8.7805]
[1748106691566,3.90709543,2559.5,2559.2,8.7805]
[1748106691773,3.90709543,2559.5,2559.4,1.83372924]
[1748106692113,3.90709543,2559.5,2559.4,10.89515216]
[1748106694807,3.90709543,2559.5,2559.1,16.915]
[1748106694808,3.90747108,2559.2,2559.1,16.915]
[1748106695118,3.90747108,2559.2,2559.1,53.34372924]
[1748106695420,3.90747108,2559.2,2559.1,43.51]
[1748106697218,3.90747108,2559.2,2559.1,16.915]
[1748106697219,4.73837108,2559.2,2559.1,16.915]
[1748106697443,4.73837108,2559.2,2559.1,43.509]
[1748106697577,5.99365884,2559.2,2559.1,43.509]
[1748106697914,6.35831427,2559.2,2559.1,43.509]
[1748106698319,5.10302651,2559.2,2559.1,43.509]
[1748106699185,4.27212651,2559.2,2559.1,43.509]
[1748106700334,3.90747108,2559.2,2559.1,43.509]
[1748106701629,3.90747108,2559.2,2559.1,51.509]
[1748106706735,3.90738934,2559.3,2559.2,8.0]
[1748106706888,3.90738934,2559.3,2559.2,10.58952924]
[1748106707512,3.90706959,2559.5,2559.2,10.58952924]
[1748106707702,3.9073184,2559.3,2559.2,8.7558]
[1748106707902,3.9073184,2559.3,2559.2,10.58952924]
[1748106708933,3.90723981,2559.4,2559.2,10.58952924]
[1748106709102,3.9073184,2559.3,2559.2,10.58952924]
[1748106710694,3.9073184,2559.3,2559.2,11.13952924]
[1748106719315,3.9073184,2559.3,2559.2,22.84852924]
[1748106719515,3.9073184,2559.3,2559.2,22.09272924]
[1748106720507,3.9073184,2559.3,2559.2,9.83372924]
[1748106720702,3.9073184,2559.3,2559.2,21.54172924]
[1748106725159,3.90747108,2559.2,2559.1,31.8]
[1748106725318,5.51282121,2559.2,2559.1,31.8]
[1748106725508,4.73137108,2559.2,2559.1,43.508]
[1748106725709,4.73137108,2559.2,2559.1,51.508]
[1748106726017,1.83372924,2560.3,2559.1,51.508]
[1748106726018,0.7963,2559.9,2559.2,8.0]
[1748106726335,3.90655519,2559.8,2559.7,1.83372924]
[1748106726545,3.90655519,2559.8,2559.7,28.39772924]
[1748106726909,3.90655519,2559.8,2559.7,36.39772924]
[1748106728225,3.90640259,2559.9,2559.8,8.0]
[1748106730150,1.917939,2560.4,2559.8,8.0]
[1748106730371,3.90640259,2559.9,2559.8,8.0]
[1748106731579,3.90640259,2559.9,2559.8,9.83372924]
[1748106732552,3.90640259,2559.9,2559.8,10.38372924]
[1748106733806,5.82360203,2560.4,2559.9,0.7912]
[1748106733807,3.9063155,2560.0,2559.9,0.7912]
[1748106734086,1.121639,2560.4,2559.9,10.62492924]
[1748106734235,1.121639,2560.4,2560.3,1.83372924]
[1748106734431,5.02727874,2560.4,2560.3,54.08398287]
[1748106734637,5.02727874,2560.4,2560.3,54.04492924]
[1748106735110,5.02727874,2560.4,2560.3,54.59492924]
[1748106735236,1.121639,2560.4,2560.3,54.59492924]
[1748106735432,0.98798412,2560.4,2560.3,55.48599769]
[1748106736677,0.98798412,2560.4,2560.3,56.12347688]
[1748106738110,4.89362386,2560.4,2560.3,56.12347688]
[1748106739415,4.89362386,2560.4,2560.3,42.73120843]
[1748106739600,4.89362386,2560.4,2560.3,54.43620843]
[1748106741968,4.89362386,2560.4,2560.3,54.43520843]
[1748106744820,0.98798412,2560.4,2560.3,55.26040843]
[1748106745370,4.89362386,2560.4,2560.3,55.26040843]
[1748106747321,3.90563974,2560.4,2560.3,55.26040843]
[1748106749135,3.90563974,2560.4,2560.3,24.859]
[1748106749281,3.90563974,2560.4,2560.3,43.349]
[1748106749818,3.90563974,2560.4,2560.3,51.349]
[1748106750418,3.90563974,2560.4,2560.3,39.646]
[1748106750637,3.90563974,2560.4,2560.3,51.349]
[1748106755367,5.54965282,2560.4,2560.3,51.349]
[1748106756227,4.68613974,2560.4,2560.3,51.349]
[1748106756765,4.68613974,2560.4,2560.3,39.646]
[1748106756969,4.68613974,2560.4,2560.3,51.35]
[1748106757862,3.90563974,2560.4,2560.3,51.35]
[1748106758443,3.90563974,2560.4,2560.3,39.646]
[1748106758647,3.90563974,2560.4,2560.3,51.35]
[1748106760557,3.90563974,2560.4,2560.3,51.351]
[1748106763879,4.71383974,2560.4,2560.3,24.859]
[1748106764042,5.57094282,2560.4,2560.3,51.351]
[1748106764239,3.90563974,2560.4,2560.3,51.351]
[1748106764468,3.90563974,2560.4,2560.3,53.18472924]
[1748106765493,3.90563974,2560.4,2560.3,51.351]
[1748106766535,3.90563974,2560.4,2560.3,24.859]
[1748106766734,3.90563974,2560.4,2560.3,51.351]
[1748106768582,3.90563974,2560.4,2560.3,24.859]
[1748106768748,3.90563974,2560.4,2560.3,51.351]
[1748106770703,3.90563974,2560.4,2560.3,53.18472924]
[1748106770884,3.90563974,2560.4,2560.3,51.351]
[1748106772904,3.90563974,2560.4,2560.3,53.18472924]
[1748106775420,3.90550596,2560.5,2560.4,8.0]
[1748106777280,3.90550596,2560.5,2560.4,8.55]
[1748106777718,3.90533993,2560.6,2560.4,8.55]
[1748106777896,3.90533993,2560.6,2560.5,1.83372924]
[1748106778218,3.90533993,2560.6,2560.5,9.83372924]
[1748106778917,3.90533993,2560.6,2560.5,10.63062924]
[1748106781122,3.90510415,2560.8,2560.6,8.55]
[1748106781293,3.90510415,2560.8,2560.7,21.53672924]
[1748106781623,6.12,2561.1,2560.8,8.0]
[1748106781788,3.90461552,2561.1,2561.0,9.83372924]
[1748106782321,3.90429874,2561.3,2561.0,9.83372924]
[1748106782527,3.90448481,2561.2,2561.1,20.253]
[1748106783081,3.90448481,2561.2,2561.1,34.382]
[1748106783802,3.90448481,2561.2,2561.1,36.21572924]
[1748106784442,3.904223,2561.4,2561.1,36.99382924]
[1748106784589,3.90426736,2561.3,2561.2,8.0]
[1748106784914,3.90426736,2561.3,2561.2,26.68472924]
[1748106785283,3.90403858,2561.5,2561.3,0.55]
[1748106785527,3.90403858,2561.5,2561.4,1.83372924]
[1748106786225,3.90389075,2561.6,2561.4,1.83372924]
[1748106786441,3.90381011,2561.6,2561.5,19.702]
[1748106787283,3.90366522,2561.7,2561.6,8.55]
[1748106787284,3.90365772,2561.7,2561.6,8.55]
[1748106787485,3.90365772,2561.7,2561.6,25.06172924]
[1748106788720,3.95335841,2561.9,2561.7,0.55]
[1748106789029,3.90411493,2561.4,2561.2,16.851]
[1748106789227,3.90426736,2561.3,2561.2,16.851]
[1748106789401,3.90426736,2561.3,2561.2,43.227]
[1748106789584,3.90426736,2561.3,2561.2,51.227]
[1748106791488,3.90426736,2561.3,2561.2,39.527]
[1748106791694,3.90426736,2561.3,2561.2,51.227]
[1748106794932,3.90426736,2561.3,2561.2,53.06072924]
[1748106796539,3.90426736,2561.3,2561.2,51.227]
[1748106797536,3.90426736,2561.3,2561.2,24.851]
[1748106797717,3.90426736,2561.3,2561.2,51.227]
[1748106798546,3.90426736,2561.3,2561.2,24.851]
[1748106798705,4.69106736,2561.3,2561.2,51.227]
[1748106798909,6.16258559,2561.3,2561.2,51.227]
[1748106799129,12.28258559,2561.3,2561.2,31.527]
[1748106799347,12.28258559,2561.3,2561.2,43.227]
[1748106799647,12.28258559,2561.3,2561.2,51.227]
[1748106799815,12.28258559,2561.3,2561.2,24.851]
[1748106800017,12.28258559,2561.3,2561.2,16.851]
[1748106800267,12.28258559,2561.3,2561.2,43.227]
[1748106801153,12.64627877,2561.3,2561.2,43.227]
[1748106804164,12.64627877,2561.3,2561.2,43.273]
[1748106809461,24.73000801,2561.3,2561.2,43.276]
[1748106809669,24.73000801,2561.3,2561.2,31.574]
[1748106810044,30.89627877,2561.3,2561.2,31.574]
[1748106810245,22.89627877,2561.3,2561.2,31.574]
[1748106810465,22.89627877,2561.3,2561.2,43.276]
[1748106819324,22.89627877,2561.3,2561.2,16.851]
[1748106819523,22.89627877,2561.3,2561.2,43.278]
[1748106821523,22.89627877,2561.3,2561.2,31.575]
[1748106821725,22.89627877,2561.3,2561.2,43.278]
[1748106824209,20.63796054,2561.3,2561.2,43.278]
[1748106826563,21.46746054,2561.3,2561.2,31.575]
[1748106826769,21.46746054,2561.3,2561.2,16.851]
[1748106826969,21.46746054,2561.3,2561.2,43.278]
[1748106829270,20.63796054,2561.3,2561.2,43.278]
[1748106830343,10.38796054,2561.3,2561.2,43.278]
[1748106830935,10.38796054,2561.3,2561.2,44.1089]
[1748106832160,10.38796054,2561.3,2561.2,52.1089]
[1748106832161,4.26796054,2561.3,2561.2,52.1089]
[1748106832976,3.90426736,2561.3,2561.2,52.1089]
[1748106838806,3.90426736,2561.3,2561.2,53.94262924]
[1748106840809,3.90426736,2561.3,2561.2,54.49262924]
[1748106846483,3.90426736,2561.3,2561.2,40.4059]
[1748106846688,3.90426736,2561.3,2561.2,16.851]
[1748106846874,3.90426736,2561.3,2561.2,43.232]
[1748106847413,3.90426736,2561.3,2561.2,51.232]
[1748106849894,3.90426736,2561.3,2561.2,53.06572924]
[1748106852835,3.90426736,2561.3,2561.2,24.851]
[1748106853039,3.90426736,2561.3,2561.2,39.532]
[1748106853184,3.94354564,2561.3,2561.2,51.232]
[1748106853529,3.90426736,2561.3,2561.2,51.232]
[1748106853732,4.76750799,2561.3,2561.2,51.232]
[1748106854933,4.76750799,2561.3,2561.2,51.233]
[1748106856182,3.90426736,2561.3,2561.2,51.233]
[1748106857734,4.72486736,2561.3,2561.2,51.233]
[1748106861498,5.08973455,2561.3,2561.2,51.233]
[1748106863490,5.08973455,2561.3,2561.2,24.851]
[1748106863789,4.72486736,2561.3,2561.2,51.233]
[1748106865527,10.84486736,2561.3,2561.2,51.233]
[1748106865736,12.68461721,2561.3,2561.2,51.233]
[1748106866023,12.68461721,2561.3,2561.2,39.533]
[1748106866328,12.68461721,2561.3,2561.2,51.233]
[1748106866801,12.68461721,2561.3,2561.2,24.851]
[1748106867330,12.68461721,2561.3,2561.2,43.202]
[1748106870529,12.68461721,2561.3,2561.2,51.202]
[1748106870691,10.38911658,2561.3,2561.2,51.202]
[1748106873239,10.38911658,2561.3,2561.2,24.851]
[1748106873393,10.38911658,2561.3,2561.2,51.203]
[1748106874512,10.38911658,2561.3,2561.2,43.203]
[1748106875219,10.38911658,2561.3,2561.2,16.851]
[1748106875433,12.62564213,2561.3,2561.2,43.203]
[1748106876342,12.62564213,2561.3,2561.2,31.502]
[1748106876720,22.87564213,2561.3,2561.2,31.502]
[1748106876922,22.87564213,2561.3,2561.2,43.203]
[1748106878550,22.87564213,2561.3,2561.2,16.851]
[1748106879045,22.87564213,2561.3,2561.2,43.203]
[1748106879205,22.87564213,2561.3,2561.2,31.502]
[1748106879406,22.87564213,2561.3,2561.2,43.203]
[1748106879620,22.87564213,2561.3,2561.2,31.502]
[1748106879821,22.87564213,2561.3,2561.2,43.203]
[1748106883230,22.87564213,2561.3,2561.2,31.502]
[1748106883428,22.87564213,2561.3,2561.2,43.204]
[1748106885959,22.87564213,2561.3,2561.2,43.205]
[1748106886661,22.87564213,2561.3,2561.2,43.207]
[1748106887546,22.87564213,2561.3,2561.2,31.504]
[1748106889164,10.02457225,2561.1,2561.0,11.703]
[1748106889346,13.09452828,2561.1,2561.0,26.357]
[1748106889923,13.4593775,2561.1,2561.0,26.357]
[1748106890787,13.45895877,2561.1,2561.0,26.357]
[1748106891069,10.38900274,2561.1,2561.0,26.357]
[1748106893981,10.38900274,2561.1,2560.8,0.764]
[1748106893982,3.90487719,2560.9,2560.8,8.0]
[1748106894284,10.02487719,2560.9,2560.8,34.357]
[1748106895038,10.38930768,2560.9,2560.8,34.357]
[1748106896684,10.38930768,2560.9,2560.8,22.654]
[1748106896854,12.28648049,2560.9,2560.8,34.357]
[1748106897862,12.28648049,2560.9,2560.8,8.0]
[1748106898058,12.28648049,2560.9,2560.8,34.355]
[1748106898904,12.28648049,2560.9,2560.8,26.355]
[1748106900187,3.90502967,2560.8,2560.7,16.853]
[1748106900407,3.90502967,2560.8,2560.7,51.21]
[1748106900556,4.26946016,2560.8,2560.7,51.21]
[1748106902109,4.26946016,2560.8,2560.7,43.21]
[1748106902313,6.08936871,2560.8,2560.7,43.21]
[1748106902869,6.08936871,2560.8,2560.7,16.853]
[1748106903068,6.08936871,2560.8,2560.7,43.21]
[1748106903813,12.20936871,2560.8,2560.7,43.21]
[1748106904841,10.38946016,2560.8,2560.7,43.21]
[1748106905132,10.38946016,2560.8,2560.7,53.80732924]
[1748106905918,10.38946016,2560.8,2560.7,51.9736]
[1748106906092,10.38946016,2560.8,2560.7,24.853]
[1748106906285,10.38946016,2560.8,2560.7,51.21]
[1748106906486,12.29056871,2560.8,2560.7,43.21]
[1748106908102,10.38946016,2560.8,2560.7,43.21]
[1748106910230,10.38946016,2560.8,2560.7,53.81732924]
[1748106910802,10.38946016,2560.8,2560.7,51.9836]
[1748106914427,10.38946016,2560.8,2560.7,53.81732924]
[1748106916391,10.38946016,2560.8,2560.7,51.9836]
[1748106917791,12.20936871,2560.8,2560.7,51.21]
[1748106917953,12.20936871,2560.8,2560.7,43.21]
[1748106918581,12.20936871,2560.8,2560.7,31.505]
[1748106918785,12.20936871,2560.8,2560.7,43.208]
[1748106919081,22.45936871,2560.8,2560.7,16.853]
[1748106919282,23.28156871,2560.8,2560.7,31.505]
[1748106919582,23.28156871,2560.8,2560.7,43.208]
[1748106920782,23.28156871,2560.8,2560.7,31.505]
[1748106922301,23.28156871,2560.8,2560.7,16.853]
[1748106922456,23.83156871,2560.8,2560.7,31.507]
[1748106923282,3.90564704,2560.4,2560.1,16.855]
[1748106923579,11.21522277,2560.3,2560.2,26.358]
[1748106924685,3.90670781,2559.7,2559.6,8.0]
[1748106924982,3.90670781,2559.7,2559.6,34.359]
[1748106927926,1.08723969,2598.1,2559.6,35.1748]
[1748106927927,3.90594484,2560.2,2559.6,35.1748]
[1748106928224,10.02581321,2560.3,2560.2,8.8158]
[1748106928406,10.02581321,2560.3,2560.2,35.1738]
[1748106929210,10.02581321,2560.3,2560.2,52.0308]
[1748106932417,3.90579228,2560.3,2560.2,52.0308]
[1748106933545,3.90579228,2560.3,2560.2,25.6728]
[1748106933846,3.90579228,2560.3,2560.2,16.857]
[1748106934033,3.90579228,2560.3,2560.2,43.215]
[1748106934234,3.90579228,2560.3,2560.2,51.215]
[1748106934442,3.90579228,2560.3,2560.2,43.215]
[1748106934807,3.90579228,2560.3,2560.2,51.215]
[1748106936343,10.88428698,2560.3,2560.2,51.215]
[1748106936921,11.24842401,2560.3,2560.2,51.215]
[1748106937944,11.24842401,2560.3,2560.2,24.857]
[1748106938111,11.24842401,2560.3,2560.2,51.215]
[1748106938309,12.02192401,2560.3,2560.2,43.215]
[1748106942135,12.02192401,2560.3,2560.2,31.509]
[1748106942335,12.02192401,2560.3,2560.2,43.215]
[1748106943228,12.02192401,2560.3,2560.2,31.51]
[1748106944028,3.9073184,2559.3,2559.2,8.7598]
[1748106944233,3.9073184,2559.3,2559.2,51.9758]
[1748106944455,10.0273184,2559.3,2559.2,31.51]
[1748106944624,10.0273184,2559.3,2559.2,43.216]
[1748106945223,10.0273184,2559.3,2559.2,16.857]
[1748106945445,11.81147048,2559.3,2559.2,43.217]
[1748106946256,11.81147048,2559.3,2559.2,31.51]
[1748106946504,11.81147048,2559.3,2559.2,43.217]
[1748106946776,12.17578749,2559.3,2559.2,43.217]
[1748106947966,6.05578749,2559.3,2559.2,16.857]
[1748106948174,6.05578749,2559.3,2559.2,43.219]
[1748106949247,6.05578749,2559.3,2559.2,51.219]
[1748106949450,4.27163541,2559.3,2559.2,51.219]
[1748106950182,3.9073184,2559.3,2559.2,51.219]
[1748106951048,3.9073184,2559.3,2559.2,43.219]
[1748106951849,3.9073184,2559.3,2559.2,43.221]
[1748106953762,5.1012369,2559.3,2559.2,43.224]
[1748106953966,6.39278083,2559.3,2559.2,43.224]
[1748106954160,6.39278083,2559.3,2559.2,31.514]
[1748106954360,5.56278083,2559.3,2559.2,31.514]
[1748106954685,6.39278083,2559.3,2559.2,31.514]
[1748106958392,3.90747108,2559.2,2559.1,0.05]
[1748106958591,5.3282152,2559.2,2559.1,14.708]
[1748106959393,5.6921337,2559.2,2559.1,14.708]
[1748106962281,5.6921337,2559.2,2559.1,26.419]
[1748106962597,5.6921337,2559.2,2559.1,14.708]
[1748106963312,4.27138958,2559.2,2559.1,24.54172924]
[1748106963816,0.03021618,2559.2,2559.1,25.33832924]
[1748106963970,1.96876292,2560.0,2559.3,0.7966]
[1748106964317,1.96876292,2560.0,2559.5,8.7966]
[1748106964318,3.90693558,2559.6,2559.5,8.7966]
[1748106964523,3.90693558,2559.6,2559.5,23.4636]
[1748106965507,3.90693558,2559.6,2559.5,25.29732924]
[1748106965801,3.90693558,2559.6,2559.5,0.7966]
[1748106966000,3.90693558,2559.6,2559.5,35.1736]
[1748106969121,3.90693558,2559.6,2559.5,8.7966]
[1748106969323,3.90693558,2559.6,2559.5,35.1726]
[1748106971847,3.90618647,2560.1,2559.5,35.1726]
[1748106971995,3.90563974,2560.4,2560.1,0.768]
[1748106972196,6.12,2560.3,2560.2,43.236]
[1748106972395,10.02579228,2560.3,2560.2,43.236]
[1748106974403,11.41893548,2560.3,2560.2,43.236]
[1748106975839,11.41893548,2560.3,2560.2,16.862]
[1748106976034,11.41893548,2560.3,2560.2,43.233]
[1748106977249,11.41893548,2560.3,2560.2,16.862]
[1748106977432,12.54984212,2560.3,2560.2,43.233]
[1748106983056,10.38939892,2560.3,2560.2,43.233]
[1748106984004,10.79259228,2560.3,2560.2,43.232]
[1748106985133,10.79259228,2560.3,2560.2,16.862]
[1748106985341,10.79259228,2560.3,2560.2,43.231]
[1748106985702,11.15625032,2560.3,2560.2,43.231]
[1748106985896,12.66243933,2560.3,2560.2,31.524]
[1748106986256,12.66243933,2560.3,2560.2,43.231]
[1748106989438,22.91243933,2560.3,2560.2,43.231]
[1748106989743,22.91243933,2560.3,2560.2,31.524]
[1748106989947,22.91243933,2560.3,2560.2,43.272]
[1748106990378,22.91243933,2560.3,2560.2,31.564]
[1748106990661,3.90716574,2559.4,2559.3,0.7504]
[1748106990813,10.02716574,2559.4,2559.3,35.1604]
[1748106993766,10.02716574,2559.4,2559.3,36.98987954]
[1748106993944,10.02716574,2559.4,2559.3,35.1604]
[1748106994151,10.02716574,2559.4,2559.3,36.98987954]
[1748106999187,10.02716574,2559.4,2559.3,53.85087954]
[1748106999951,10.02716574,2559.4,2559.3,16.861]
[1748107000146,12.18668613,2559.4,2559.3,43.273]
[1748107000589,10.02716574,2559.4,2559.3,43.273]
[1748107000793,10.39204407,2559.4,2559.3,44.0292]
[1748107002311,10.02716574,2559.4,2559.3,44.0292]
[1748107003530,10.02716574,2559.4,2559.3,52.0292]
[1748107003830,3.90655519,2559.8,2559.5,0.799]
[1748107004122,3.90672389,2559.7,2559.6,20.508]
[1748107005205,3.90672389,2559.7,2559.6,22.33747954]
[1748107010602,3.90672389,2559.7,2559.6,37.03747954]
[1748107012011,3.90672389,2559.7,2559.6,25.33047954]
[1748107012219,3.90672389,2559.7,2559.6,37.03747954]
[1748107013235,3.90716574,2559.4,2559.3,16.861]
[1748107013417,3.94644402,2559.4,2559.3,31.562]
[1748107013580,4.73054402,2559.4,2559.3,31.562]
[1748107013782,4.69126574,2559.4,2559.3,43.269]
[1748107014026,5.94177967,2559.4,2559.3,43.269]
[1748107014498,6.30639685,2559.4,2559.3,43.269]
[1748107015322,12.42639685,2559.4,2559.3,31.562]
[1748107015519,12.42639685,2559.4,2559.3,43.269]
[1748107016724,12.42639685,2559.4,2559.3,31.562]
[1748107016926,12.42639685,2559.4,2559.3,43.27]
[1748107020538,12.42639685,2559.4,2559.3,16.861]
[1748107020836,12.42639685,2559.4,2559.3,43.331]
[1748107022397,12.42639685,2559.4,2559.3,31.622]
[1748107022398,22.67639685,2559.4,2559.3,31.622]
[1748107022601,22.67639685,2559.4,2559.3,16.861]
[1748107022821,22.67639685,2559.4,2559.3,31.622]
[1748107023615,23.22639685,2559.4,2559.3,16.861]
[1748107023946,25.05587639,2559.4,2559.3,31.623]
[1748107024443,25.05587639,2559.4,2559.3,16.861]
[1748107024645,25.05587639,2559.4,2559.3,31.623]
[1748107025449,23.22639685,2559.4,2559.3,31.623]
[1748107025744,22.67639685,2559.4,2559.3,31.623]
[1748107025945,22.67639685,2559.4,2559.1,0.05]
[1748107025946,3.90747108,2559.2,2559.1,0.05]
[1748107026244,3.90747108,2559.2,2559.1,26.524]
[1748107029144,3.90747108,2559.2,2559.1,43.389]
[1748107030447,4.70847108,2559.2,2559.1,31.679]
[1748107030607,10.73762377,2559.1,2559.0,11.711]
[1748107030806,10.73762377,2559.1,2559.0,26.475]
[1748107031239,11.10224095,2559.1,2559.0,26.475]
[1748107031877,10.34224095,2559.1,2559.0,26.475]
[1748107032171,10.34224095,2559.1,2559.0,34.475]
[1748107032472,9.97762377,2559.1,2559.0,34.475]
[1748107033377,9.97762377,2559.1,2559.0,37.10897954]
[1748107033942,9.97762377,2559.1,2559.0,22.764]
[1748107034142,9.97762377,2559.1,2559.0,34.476]
[1748107034560,9.97762377,2559.1,2559.0,36.30547954]
[1748107035479,9.97762377,2559.1,2559.0,34.476]
[1748107037896,9.97762377,2559.1,2559.0,34.477]
[1748107039015,9.97762377,2559.1,2559.0,37.11377954]
[1748107039225,9.97762377,2559.1,2559.0,53.97877954]
[1748107041428,9.97762377,2559.1,2559.0,52.1493]
[1748107041723,9.97762377,2559.1,2559.0,39.629]
[1748107041932,9.97762377,2559.1,2559.0,51.34]
[1748107042427,10.3425049,2559.1,2559.0,51.34]
[1748107043025,12.8694625,2559.1,2559.0,51.34]
[1748107043197,12.8694625,2559.1,2559.0,39.629]
[1748107043524,12.8694625,2559.1,2559.0,51.34]
[1748107044525,12.8694625,2559.1,2559.0,24.865]
[1748107044825,12.8694625,2559.1,2559.0,51.34]
[1748107046131,12.8694625,2559.1,2559.0,39.629]
[1748107046296,12.8694625,2559.1,2559.0,51.34]
[1748107050637,10.3425049,2559.1,2559.0,53.16947954]
[1748107051643,9.97762377,2559.1,2559.0,53.16947954]
[1748107052710,9.97762377,2559.1,2559.0,51.34]
[1748107053109,9.97762377,2559.1,2559.0,24.865]
[1748107053327,9.97762377,2559.1,2559.0,43.322]
[1748107053525,11.44496326,2559.1,2559.0,43.322]
[1748107053721,12.59833082,2559.1,2559.0,31.611]
[1748107059474,12.59833082,2559.1,2558.8,11.711]
[1748107059475,3.90792918,2558.9,2558.8,11.711]
[1748107059625,3.90792918,2558.9,2558.8,26.459]
[1748107059819,4.69622918,2558.9,2558.8,26.459]
[1748107060020,23.05763505,2558.9,2558.8,26.459]
[1748107060520,23.42270261,2558.9,2558.8,26.459]
[1748107062859,23.42270261,2558.9,2558.8,14.748]
[1748107063048,23.42270261,2558.9,2558.8,26.462]
[1748107063454,3.90899851,2558.2,2558.1,0.05]
[1748107063773,10.80006364,2558.2,2558.1,19.764]
[1748107063924,10.76078536,2558.2,2558.1,19.764]
[1748107065054,9.97899851,2558.2,2558.1,19.764]
[1748107069063,9.97899851,2558.2,2558.1,8.05]
[1748107069361,9.97899851,2558.2,2558.1,22.8]
[1748107069562,9.97899851,2558.2,2558.1,34.515]
[1748107073597,9.97899851,2558.2,2558.1,0.05]
[1748107073758,12.14178536,2558.2,2558.1,26.517]
[1748107073966,12.14178536,2558.2,2558.1,0.05]
[1748107074167,12.50616635,2558.2,2558.1,26.517]
[1748107074704,6.43616635,2558.2,2558.1,14.801]
[1748107076263,6.83605544,2558.2,2558.1,14.801]
[1748107083680,6.83605544,2558.2,2558.1,14.863]
[1748107085814,23.15605544,2558.2,2558.1,14.863]
[1748107086015,23.70605544,2558.2,2558.1,14.863]
[1748107088784,3.90915132,2558.1,2558.0,31.684]
[1748107089120,8.2235254,2558.1,2558.0,31.684]
[1748107092280,9.97930414,2558.0,2557.9,11.718]
[1748107092494,9.97930414,2558.0,2557.9,26.533]
[1748107092816,10.34368513,2558.0,2557.9,26.533]
[1748107093026,13.83613553,2558.0,2557.9,26.533]
[1748107093193,13.83613553,2558.0,2557.9,14.815]
[1748107097086,14.38613553,2558.0,2557.9,14.815]
[1748107097302,14.38613553,2558.0,2557.3,0.8066]
[1748107097303,3.91022131,2557.4,2557.3,0.8066]
[1748107097526,11.36925288,2557.4,2557.3,27.3406]
[1748107097730,9.98022131,2557.4,2557.3,27.3406]
[1748107097931,10.3446023,2557.4,2557.3,27.3406]
[1748107098124,10.3446023,2557.4,2557.3,15.6216]
[1748107098431,10.3446023,2557.4,2557.3,27.3406]
[1748107099129,10.3446023,2557.4,2557.3,44.2166]
[1748107099490,20.5946023,2557.4,2557.3,44.2166]
[1748107100429,23.04507197,2557.4,2557.3,43.41]
[1748107101539,23.04507197,2557.4,2557.3,31.691]
[1748107101725,23.04507197,2557.4,2557.3,43.41]
[1748107102225,23.04507197,2557.4,2557.3,31.691]
[1748107102395,9.98052713,2557.2,2557.1,0.05]
[1748107102582,9.98052713,2557.2,2557.1,14.866]
[1748107103007,20.59490812,2557.2,2557.1,14.866]
[1748107103511,22.42438766,2557.2,2557.1,14.866]
[1748107104035,30.42438766,2557.2,2557.1,14.866]
[1748107104183,34.37438075,2557.2,2557.1,14.866]
[1748107104949,32.54490121,2557.2,2557.1,14.866]
[1748107105504,32.54490121,2557.2,2557.1,14.867]
[1748107106313,20.59490812,2557.2,2557.1,26.587]
[1748107106627,20.59490812,2557.2,2557.1,14.867]
[1748107106832,31.18018766,2557.2,2557.1,0.05]
[1748107106992,31.73018766,2557.2,2557.1,0.05]
[1748107107192,35.68018075,2557.2,2557.1,0.05]
[1748107107525,33.85070121,2557.2,2557.1,0.05]
[1748107109037,25.85070121,2557.2,2557.1,0.05]
[1748107109228,25.30070121,2557.2,2557.1,14.868]
[1748107109831,3.91113892,2556.8,2556.7,12.5109]
[1748107110032,9.98113892,2556.8,2556.7,27.3299]
[1748107111253,9.98113892,2556.8,2556.7,35.3299]
[1748107114846,9.98113892,2556.8,2556.7,37.15937954]
[1748107119067,9.98113892,2556.8,2556.7,35.3299]
[1748107119620,3.91205695,2556.2,2555.9,0.7851]
[1748107119824,3.91205695,2556.2,2556.1,14.879]
[1748107120050,3.91205695,2556.2,2556.1,22.879]
[1748107121341,3.91205695,2556.2,2556.1,23.6641]
[1748107123028,0.8313,2557.5,2556.3,0.7851]
[1748107123363,3.91068006,2557.1,2557.0,9.82947954]
[1748107123570,3.91068006,2557.1,2557.0,53.26247954]
[1748107127574,3.91068006,2557.1,2557.0,54.05357954]
[1748107129030,3.91068006,2557.1,2557.0,52.2241]
[1748107130294,3.91068006,2557.1,2557.0,52.2221]
[1748107132773,3.91051877,2557.3,2557.1,8.8279]
[1748107132989,3.91052713,2557.2,2557.1,10.65737954]
[1748107140296,3.91038167,2557.3,2557.1,10.65737954]